bitfinex/quotes_BTCUSD_20240815
["timestamp","ask_amount","ask_price","bid_price","bid_amount"]
[1723744083887,0.002827,59450.0,59449.0,0.85449658]
[1723744084233,0.002827,59450.0,59449.0,0.51807458]
[1723744084458,0.74110654,59450.0,59449.0,0.01344158]
[1723744084654,1.50807733,59450.0,59449.0,0.01344158]
[1723744084858,1.65130715,59450.0,59449.0,0.008]
[1723744085256,1.60807733,59450.0,59449.0,0.008]
[1723744085658,1.60807733,59450.0,59449.0,0.007]
[1723744085659,1.94349433,59450.0,59449.0,0.007]
[1723744086066,1.62107733,59450.0,59449.0,0.007]
[1723744086463,1.60707733,59450.0,59449.0,0.007]
[1723744086670,0.35141833,59450.0,59449.0,0.007]
[1723744086887,0.53362633,59450.0,59449.0,0.007]
[1723744087180,0.53362633,59450.0,59449.0,0.01244158]
[1723744087181,0.51768954,59450.0,59449.0,0.01244158]
[1723744087386,0.51862592,59450.0,59449.0,0.00544158]
[1723744087601,0.26441792,59450.0,59449.0,0.001]
[1723744087770,0.76804292,59450.0,59449.0,0.00544158]
[1723744088053,0.26341792,59450.0,59444.0,0.416546]
[1723744088247,0.42769054,59450.0,59449.0,0.001]
[1723744088523,0.44362711,59450.0,59449.0,0.001]
[1723744088767,0.78004411,59450.0,59449.0,0.001]
[1723744088967,0.78004411,59450.0,59445.0,0.168222]
[1723744088968,0.168212,59449.0,59445.0,0.168222]
[1723744089197,0.58683511,59450.0,59447.0,0.168216]
[1723744089198,0.23448154,59450.0,59447.0,0.168216]
[1723744089400,0.23448154,59450.0,59444.0,0.0801]
[1723744089401,0.023827,59450.0,59449.0,0.336422]
[1723744089603,0.192036,59450.0,59448.0,0.00544767]
[1723744089806,0.192036,59450.0,59445.0,0.168221]
[1723744089807,0.168211,59449.0,59445.0,0.168221]
[1723744090186,0.168214,59448.0,59445.0,0.168221]
[1723744090315,0.168211,59449.0,59445.0,0.168221]
[1723744090517,0.168211,59449.0,59446.0,0.168219]
[1723744090767,0.178211,59449.0,59446.0,0.168219]
[1723744090945,0.01,59449.0,59446.0,0.168219]
[1723744091556,0.178213,59449.0,59444.0,0.416547]
[1723744091751,0.181213,59449.0,59445.0,0.168221]
[1723744091953,0.013,59449.0,59444.0,0.168225]
[1723744092186,0.168214,59448.0,59445.0,0.168221]
[1723744092361,0.168214,59448.0,59444.0,0.168223]
[1723744092729,0.336442,59446.0,59440.0,0.0812]
[1723744093024,0.336442,59446.0,59436.0,0.4796097]
[1723744093025,0.17155454,59445.0,59436.0,0.4796097]
[1723744093227,0.17155454,59445.0,59438.0,0.168242]
[1723744093228,0.336458,59443.0,59438.0,0.168242]
[1723744093430,0.168234,59441.0,59438.0,0.168242]
[1723744093861,0.50801254,59443.0,59436.0,0.3374017]
[1723744094064,0.168232,59442.0,59440.0,0.002]
[1723744094293,0.168233,59442.0,59440.0,0.002]
[1723744095521,0.168233,59442.0,59439.0,0.168238]
[1723744095732,0.001,59441.0,59440.0,0.001]
[1723744096249,0.168233,59442.0,59440.0,0.001]
[1723744096529,0.168233,59442.0,59440.0,0.003]
[1723744096794,0.33978254,59443.0,59440.0,0.003]
[1723744096969,0.17155454,59443.0,59441.0,0.168232]
[1723744097201,0.061027,59450.0,59444.0,0.168224]
[1723744097388,0.33976854,59448.0,59444.0,0.168224]
[1723744097824,0.33976854,59448.0,59442.0,0.168231]
[1723744097825,0.16822,59446.0,59442.0,0.168231]
[1723744098032,0.168223,59445.0,59441.0,0.0812]
[1723744098251,0.168228,59443.0,59440.0,0.002]
[1723744098433,0.168225,59444.0,59440.0,0.170235]
[1723744098665,0.168225,59444.0,59440.0,0.168235]
[1723744098908,0.168231,59442.0,59436.0,0.0821097]
[1723744099147,0.336454,59444.0,59436.0,0.0821097]
[1723744099148,0.564935,59437.0,59436.0,0.0009097]
[1723744099399,1.07297954,59437.0,59436.0,0.0009097]
[1723744099628,1.14797954,59437.0,59436.0,0.0009097]
[1723744100424,0.81148954,59437.0,59436.0,0.0009097]
[1723744100574,0.001,59437.0,59436.0,0.0029097]
[1723744100785,0.001,59437.0,59436.0,0.2523577]
[1723744101000,0.001,59437.0,59436.0,0.25787841]
[1723744101207,0.002,59437.0,59436.0,0.26287841]
[1723744101410,0.002,59437.0,59436.0,0.59937441]
[1723744101659,0.002,59437.0,59436.0,0.26287841]
[1723744102452,0.002,59437.0,59436.0,0.59937441]
[1723744103551,0.002,59437.0,59436.0,0.65997441]
[1723744103752,0.002,59437.0,59436.0,1.04684152]
[1723744103954,0.002,59437.0,59436.0,1.33296641]
[1723744104355,0.002,59437.0,59436.0,1.40852307]
[1723744104802,0.002,59437.0,59436.0,1.40652307]
[1723744104803,0.001,59437.0,59436.0,1.40652307]
[1723744104970,0.168212,59449.0,59438.0,0.336484]
[1723744105172,0.01594366,59448.0,59446.0,0.168219]
[1723744105372,0.18415766,59448.0,59445.0,0.168222]
[1723744105586,0.18415766,59448.0,59447.0,0.00545375]
[1723744105587,0.644042,59448.0,59447.0,0.00545375]
[1723744105800,0.168225,59444.0,59440.0,0.168236]
[1723744106005,0.168229,59443.0,59438.0,0.336482]
[1723744106204,0.336434,59447.0,59436.0,0.05328281]
[1723744106419,0.01594412,59446.0,59437.0,0.168243]
[1723744106619,0.336452,59444.0,59436.0,0.0009097]
[1723744106826,0.168245,59437.0,59436.0,0.0009097]
[1723744107071,0.001,59437.0,59436.0,0.1831577]
[1723744107274,0.001,59437.0,59436.0,0.1691577]
[1723744108320,0.168237,59440.0,59436.0,0.1691577]
[1723744108705,0.168237,59440.0,59436.0,0.1731577]
[1723744109277,0.168237,59440.0,59437.0,0.168245]
[1723744109696,0.337293,59442.0,59437.0,0.168245]
[1723744109910,0.18418246,59441.0,59438.0,0.168241]
[1723744110130,0.168234,59441.0,59438.0,0.168241]
[1723744110339,0.000827,59442.0,59441.0,0.168234]
[1723744110545,0.000827,59442.0,59441.0,0.504702]
[1723744110772,0.000827,59442.0,59441.0,1.259138]
[1723744111879,0.001827,59442.0,59441.0,1.259138]
[1723744114357,0.000827,59442.0,59441.0,1.259138]
[1723744114579,0.001827,59442.0,59441.0,1.267138]
[1723744115290,0.002827,59442.0,59441.0,1.274138]
[1723744118105,0.002827,59442.0,59441.0,0.93767]
[1723744119305,0.002827,59442.0,59441.0,1.274138]
[1723744119714,0.002827,59442.0,59441.0,1.27962827]
[1723744121426,0.002827,59442.0,59441.0,1.3300414]
[1723744122303,0.002827,59442.0,59441.0,0.9935734]
[1723744124638,0.002827,59442.0,59441.0,0.99359305]
[1723744126012,0.068727,59442.0,59441.0,0.07092305]
[1723744126233,0.57342,59442.0,59441.0,0.02049027]
[1723744126438,0.236958,59442.0,59441.0,0.02049027]
[1723744126696,0.068727,59442.0,59441.0,0.02049027]
[1723744127767,0.57342,59442.0,59441.0,0.02049027]
[1723744128231,0.65282,59442.0,59441.0,0.02049027]
[1723744129263,0.316358,59442.0,59441.0,0.02049027]
[1723744129487,0.148127,59442.0,59441.0,0.02049027]
[1723744130589,0.148127,59442.0,59441.0,0.07093569]
[1723744132637,0.068727,59442.0,59441.0,0.23916969]
[1723744133054,0.068727,59442.0,59441.0,0.07093569]
[1723744133681,0.068727,59442.0,59441.0,0.0709523]
[1723744134492,0.068727,59442.0,59441.0,0.2391863]
[1723744135768,0.002827,59442.0,59441.0,0.6518543]
[1723744135990,0.002827,59442.0,59441.0,0.93786027]
[1723744136647,0.002827,59442.0,59441.0,1.01355332]
[1723744137180,0.002827,59442.0,59441.0,1.4117963]
[1723744137840,0.002827,59442.0,59441.0,1.31087224]
[1723744138042,0.002827,59442.0,59441.0,1.64734024]
[1723744138214,0.002827,59442.0,59441.0,1.98380824]
[1723744138419,0.002827,59442.0,59441.0,2.30674888]
[1723744138919,0.000827,59450.0,59449.0,1.177477]
[1723744139117,0.000827,59450.0,59449.0,1.63218897]
[1723744139321,0.000827,59450.0,59449.0,1.73307093]
[1723744139882,0.000827,59450.0,59449.0,1.63218897]
[1723744140448,0.000827,59450.0,59449.0,1.75825125]
[1723744140873,0.002827,59450.0,59449.0,1.75825125]
[1723744141230,0.000827,59450.0,59449.0,1.38523928]
[1723744141439,0.000827,59450.0,59449.0,1.75918032]
[1723744141639,0.000827,59450.0,59449.0,1.76118032]
[1723744141955,0.000827,59450.0,59449.0,1.63511804]
[1723744142182,0.000827,59450.0,59449.0,1.76118032]
[1723744142360,0.000827,59450.0,59449.0,1.73591355]
[1723744144537,0.000827,59450.0,59449.0,1.63511804]
[1723744145376,0.000827,59450.0,59449.0,1.71066977]
[1723744147818,0.001827,59450.0,59449.0,2.05632135]
[1723744148616,0.001827,59450.0,59449.0,2.04632135]
[1723744149318,0.001827,59450.0,59449.0,2.05732135]
[1723744149525,0.001827,59450.0,59449.0,2.3546939]
[1723744150370,0.001827,59450.0,59449.0,2.35468016]
[1723744151503,0.001827,59450.0,59449.0,2.22886048]
[1723744152953,0.000827,59450.0,59449.0,2.21686048]
[1723744153121,0.000827,59450.0,59449.0,2.20586048]
[1723744153344,0.000827,59450.0,59449.0,2.32045835]
[1723744154560,0.000827,59450.0,59449.0,2.33445697]
[1723744157171,0.000827,59450.0,59449.0,2.26865697]
[1723744157627,0.063227,59450.0,59449.0,1.34255843]
[1723744157828,0.138827,59450.0,59449.0,0.028]
[1723744158188,0.643452,59450.0,59449.0,0.028]
[1723744158401,0.643452,59450.0,59449.0,0.02924445]
[1723744158744,0.307035,59450.0,59449.0,0.01524445]
[1723744159151,0.307035,59450.0,59449.0,0.01024445]
[1723744159352,0.307035,59450.0,59449.0,0.00924445]
[1723744159554,1.23720081,59450.0,59449.0,0.00924445]
[1723744159828,1.23720081,59450.0,59449.0,0.008]
[1723744159829,1.68958518,59450.0,59449.0,0.008]
[1723744160057,1.68958518,59450.0,59436.0,0.0009097]
[1723744160058,0.653084,59443.0,59436.0,0.0009097]
[1723744160265,0.98954,59443.0,59436.0,0.0009097]
[1723744160501,0.98954,59443.0,59437.0,0.168245]
[1723744161736,0.98954,59443.0,59436.0,0.1691557]
[1723744162600,1.18006097,59443.0,59436.0,0.0009097]
[1723744163195,1.76916241,59443.0,59436.0,0.0009097]
[1723744163396,1.61651697,59443.0,59436.0,0.0009097]
[1723744163548,1.95297297,59443.0,59436.0,0.0009097]
[1723744168876,2.89562897,59443.0,59436.0,0.0009097]
[1723744169080,1.501715,59437.0,59436.0,0.0009097]
[1723744169296,2.11150324,59437.0,59436.0,0.0009097]
[1723744169495,2.45150324,59437.0,59436.0,0.0009097]
[1723744169915,2.81099324,59437.0,59436.0,0.0009097]
[1723744170138,1.242616,59432.0,59431.0,0.0009097]
[1723744170340,2.40267189,59432.0,59431.0,0.0009097]
[1723744171457,1.97267189,59432.0,59431.0,0.0009097]
[1723744171661,1.61315289,59432.0,59431.0,0.0009097]
[1723744171865,1.60417054,59432.0,59431.0,0.0019097]
[1723744172663,1.59717054,59432.0,59431.0,0.0009097]
[1723744173094,1.60817054,59432.0,59431.0,0.0019097]
[1723744173249,1.70207242,59432.0,59431.0,0.0029097]
[1723744174086,1.61717054,59432.0,59431.0,0.0029097]
[1723744175463,2.06313353,59432.0,59431.0,0.0029097]
[1723744175666,2.08613353,59432.0,59431.0,0.0029097]
[1723744175862,2.42265253,59432.0,59431.0,0.0029097]
[1723744176924,2.43173853,59432.0,59431.0,0.0029097]
[1723744177357,2.60329307,59432.0,59431.0,0.0029097]
[1723744177866,2.60329305,59432.0,59431.0,0.0029097]
[1723744178433,2.60329466,59432.0,59431.0,0.0029097]
[1723744178610,2.41577554,59432.0,59431.0,0.0029097]
[1723744178810,1.98577554,59432.0,59431.0,0.0029097]
[1723744180142,2.35577554,59432.0,59431.0,0.0029097]
[1723744181416,2.3717399,59432.0,59431.0,0.0029097]
[1723744181943,2.37173931,59432.0,59431.0,0.0029097]
[1723744182345,2.54329385,59432.0,59431.0,0.0029097]
[1723744183861,2.87981285,59432.0,59431.0,0.0029097]
[1723744184809,2.54329385,59432.0,59431.0,0.0029097]
[1723744185056,2.52329385,59432.0,59431.0,0.0009097]
[1723744185224,2.53029385,59432.0,59431.0,0.0019097]
[1723744185425,2.87181285,59432.0,59431.0,0.0029097]
[1723744185832,2.87181217,59432.0,59431.0,0.0029097]
[1723744186164,2.86681217,59432.0,59431.0,0.0019097]
[1723744186367,2.87181217,59432.0,59431.0,0.0029097]
[1723744186782,2.86481217,59432.0,59431.0,0.0009097]
[1723744186989,2.85981217,59432.0,59431.0,0.0009097]
[1723744187190,2.87381217,59432.0,59431.0,0.0019097]
[1723744187390,2.93259797,59432.0,59431.0,0.0019097]
[1723744188107,2.91859797,59432.0,59431.0,0.0009097]
[1723744188341,2.87381217,59432.0,59431.0,0.0019097]
[1723744188512,2.88760967,59432.0,59431.0,0.0019097]
[1723744188718,2.88760967,59432.0,59431.0,7e-07]
[1723744188973,1.992775,59428.0,59420.0,0.009086]
[1723744189145,2.9952699,59428.0,59420.0,0.009086]
[1723744189779,2.99526626,59428.0,59420.0,0.009086]
[1723744190154,3.00926626,59428.0,59427.0,0.010086]
[1723744190480,3.02326626,59428.0,59427.0,0.011086]
[1723744190903,3.07043361,59428.0,59427.0,0.011086]
[1723744191466,2.17094799,59428.0,59427.0,0.011086]
[1723744191665,1.97174799,59428.0,59427.0,0.011086]
[1723744192115,1.97175616,59428.0,59427.0,0.011086]
[1723744192607,2.03055929,59428.0,59427.0,0.011086]
[1723744193479,2.40175616,59428.0,59427.0,0.011086]
[1723744193619,2.14331336,59428.0,59427.0,0.011086]
[1723744194394,1.89325882,59428.0,59427.0,0.011086]
[1723744194645,1.903173,59428.0,59427.0,0.011086]
[1723744195324,1.903173,59428.0,59427.0,0.010086]
[1723744195325,1.889173,59428.0,59427.0,0.010086]
[1723744195518,1.052791,59428.0,59427.0,0.091186]
[1723744195736,1.05687682,59428.0,59427.0,0.092186]
[1723744196144,1.04287682,59428.0,59427.0,0.091186]
[1723744196438,1.37941782,59428.0,59427.0,0.091186]
[1723744196612,1.39341782,59428.0,59427.0,0.092186]
[1723744196813,1.47941782,59428.0,59427.0,0.091186]
[1723744197015,1.47941782,59428.0,59427.0,0.092186]
[1723744197220,1.6413596,59428.0,59427.0,0.011086]
[1723744197515,1.7819596,59428.0,59427.0,0.010086]
[1723744197679,1.7899596,59428.0,59427.0,0.011086]
[1723744197905,1.78995788,59428.0,59427.0,0.011086]
[1723744198102,1.77595788,59428.0,59427.0,0.010086]
[1723744198306,2.39015788,59428.0,59427.0,0.011086]
[1723744198549,2.36815788,59428.0,59427.0,0.010086]
[1723744198798,2.37715788,59428.0,59427.0,0.011086]
[1723744198906,1.93915788,59428.0,59427.0,0.010086]
[1723744199111,1.93915767,59428.0,59427.0,0.010086]
[1723744199334,1.94815767,59428.0,59427.0,0.011086]
[1723744200062,1.80021589,59428.0,59427.0,0.011086]
[1723744200908,2.70387624,59428.0,59427.0,0.011086]
[1723744201109,2.66806687,59428.0,59427.0,0.011086]
[1723744202760,2.41586687,59428.0,59427.0,0.011086]
[1723744203194,2.47466913,59428.0,59427.0,0.011086]
[1723744203399,2.64432395,59428.0,59427.0,0.011086]
[1723744204079,2.56955623,59428.0,59427.0,0.011086]
[1723744204289,2.7617236,59428.0,59427.0,0.011086]
[1723744204671,2.8430236,59428.0,59427.0,0.011086]
[1723744205514,2.39286879,59428.0,59427.0,0.011086]
[1723744205920,2.65086879,59428.0,59427.0,0.011086]
[1723744206829,3.01040979,59428.0,59427.0,0.011086]
[1723744207475,3.05159335,59428.0,59427.0,0.010086]
[1723744207678,3.22314789,59428.0,59427.0,0.010086]
[1723744207975,3.22814789,59428.0,59427.0,0.010086]
[1723744208180,3.21218052,59428.0,59427.0,0.009086]
[1723744208393,0.0818,59427.0,59420.0,0.009086]
[1723744208545,1.08140281,59421.0,59420.0,0.009086]
[1723744208752,2.35206851,59421.0,59420.0,0.009086]
[1723744208964,3.15034137,59421.0,59420.0,0.009086]
[1723744209169,3.0750088,59421.0,59420.0,0.009086]
[1723744209761,2.65265053,59421.0,59420.0,0.009086]
[1723744209955,2.83720507,59421.0,59420.0,0.009086]
[1723744210788,2.86007225,59421.0,59420.0,0.009086]
[1723744211163,2.68851771,59421.0,59420.0,0.009086]
[1723744212992,3.02509871,59421.0,59420.0,0.009086]
[1723744214357,3.07532204,59421.0,59420.0,0.009086]
[1723744215360,3.10957627,59421.0,59420.0,0.009086]
[1723744215561,3.12554856,59421.0,59420.0,0.009086]
[1723744215770,3.32221477,59421.0,59420.0,0.009086]
[1723744216384,1.851289,59418.0,59417.0,0.009086]
[1723744216651,0.817148,59412.0,59411.0,0.0002]
[1723744216850,1.93133451,59412.0,59411.0,0.0002]
[1723744217061,3.04123051,59412.0,59411.0,0.0002]
[1723744217304,3.06423051,59412.0,59411.0,0.0002]
[1723744217483,3.18985556,59412.0,59411.0,0.0002]
[1723744217859,3.20385556,59412.0,59411.0,0.0002]
[1723744218106,3.20385556,59412.0,59391.0,0.0002]
[1723744218107,1.317507,59392.0,59391.0,0.0002]
[1723744218346,2.20220156,59392.0,59391.0,0.0002]
[1723744218526,2.38055529,59392.0,59391.0,0.0002]
[1723744218698,1.515582,59383.0,59382.0,0.009086]
[1723744218896,1.80775429,59383.0,59382.0,0.009086]
[1723744219096,1.851782,59383.0,59382.0,0.009086]
[1723744219298,1.94985076,59383.0,59382.0,0.009086]
[1723744219635,1.97285076,59383.0,59382.0,0.009086]
[1723744219837,2.19991206,59383.0,59382.0,0.009086]
[1723744220194,2.87070806,59383.0,59382.0,0.009086]
[1723744220387,2.87070806,59383.0,59382.0,1e-06]
[1723744220699,2.85670806,59383.0,59382.0,1e-06]
[1723744220908,3.20750406,59383.0,59382.0,1e-06]
[1723744221228,3.35868423,59383.0,59382.0,1e-06]
[1723744221434,3.35868423,59383.0,59367.0,0.009086]
[1723744221435,1.692065,59372.0,59367.0,0.009086]
[1723744221663,2.4095883,59372.0,59367.0,0.009086]
[1723744221874,1.9795883,59372.0,59367.0,0.009086]
[1723744222287,1.9795883,59372.0,59369.0,0.0828]
[1723744222705,1.9795883,59372.0,59367.0,0.009086]
[1723744223164,1.97959429,59372.0,59367.0,0.009086]
[1723744223400,2.85667854,59372.0,59367.0,0.009086]
[1723744223609,2.73034846,59372.0,59367.0,0.009086]
[1723744223821,2.33034846,59372.0,59367.0,0.009086]
[1723744224027,2.34021335,59372.0,59367.0,0.009086]
[1723744224242,1.48842543,59372.0,59369.0,0.0819]
[1723744224465,1.04170154,59372.0,59370.0,0.0653]
[1723744224878,1.37856054,59372.0,59371.0,0.091186]
[1723744225092,1.04170154,59372.0,59371.0,0.091186]
[1723744225298,1.02770154,59372.0,59371.0,0.091186]
[1723744225739,1.04170154,59372.0,59371.0,0.091186]
[1723744225946,0.18555454,59372.0,59371.0,0.091186]
[1723744226172,0.35398354,59372.0,59371.0,0.091186]
[1723744226391,0.70284254,59372.0,59371.0,0.10669372]
[1723744226606,1.10090154,59372.0,59371.0,0.009286]
[1723744226805,1.95081954,59372.0,59371.0,0.009286]
[1723744227043,1.61396054,59372.0,59371.0,0.009286]
[1723744227253,2.42567854,59372.0,59371.0,0.009286]
[1723744227460,2.60623308,59372.0,59371.0,0.009286]
[1723744227668,2.79343308,59372.0,59371.0,0.009286]
[1723744227878,2.81741842,59372.0,59371.0,0.010286]
[1723744228066,2.48055942,59372.0,59371.0,0.010286]
[1723744228327,2.33055942,59372.0,59371.0,0.010286]
[1723744228541,2.72855942,59372.0,59371.0,0.009286]
[1723744228741,2.72855692,59372.0,59371.0,0.009286]
[1723744228932,2.74255692,59372.0,59371.0,0.009286]
[1723744229364,2.68143075,59372.0,59371.0,0.009286]
[1723744229566,2.66943075,59372.0,59371.0,0.009286]
[1723744229685,2.48189337,59372.0,59371.0,0.009286]
[1723744229906,2.07483437,59372.0,59371.0,0.009286]
[1723744230313,2.49169337,59372.0,59371.0,0.009286]
[1723744231491,2.51469337,59372.0,59371.0,0.009286]
[1723744231833,2.53067936,59372.0,59371.0,0.009286]
[1723744232039,2.7022339,59372.0,59371.0,0.009286]
[1723744233230,2.7654339,59372.0,59371.0,0.009286]
[1723744233684,3.1022929,59372.0,59371.0,0.009286]
[1723744234190,3.1022929,59372.0,59367.0,0.009086]
[1723744234191,1.657164,59368.0,59367.0,0.009086]
[1723744234386,2.99191734,59368.0,59367.0,0.009086]
[1723744235079,3.03421751,59368.0,59367.0,0.009086]
[1723744235230,2.65503634,59368.0,59367.0,0.009086]
[1723744235433,2.4834818,59368.0,59367.0,0.009086]
[1723744235834,2.4974818,59368.0,59367.0,0.009086]
[1723744236037,2.4195818,59368.0,59367.0,0.009086]
[1723744236239,2.3422818,59368.0,59367.0,0.009086]
[1723744236646,2.3562818,59368.0,59367.0,0.009086]
[1723744236839,2.51383634,59368.0,59367.0,0.009086]
[1723744237042,2.52783634,59368.0,59367.0,0.009086]
[1723744237250,2.54183634,59368.0,59367.0,0.009086]
[1723744237456,2.24750453,59368.0,59367.0,0.009086]
[1723744238323,2.26150453,59368.0,59367.0,0.009086]
[1723744238836,2.24750453,59368.0,59367.0,0.009086]
[1723744239232,2.26150453,59368.0,59367.0,0.009086]
[1723744239645,2.24750453,59368.0,59367.0,0.009086]
[1723744239880,2.43305907,59368.0,59367.0,0.009086]
[1723744240072,2.56715907,59368.0,59367.0,0.009086]
[1723744240479,2.48865907,59368.0,59367.0,0.009086]
[1723744241055,2.50265907,59368.0,59367.0,0.009086]
[1723744241274,2.51665907,59368.0,59367.0,0.009086]
[1723744241446,2.45605907,59368.0,59367.0,0.009086]
[1723744241886,2.44205907,59368.0,59367.0,0.009086]
[1723744242224,2.44561865,59368.0,59367.0,0.009086]
[1723744242456,2.44560823,59368.0,59367.0,0.009086]
[1723744242655,2.45960823,59368.0,59367.0,0.009086]
[1723744242833,2.44560823,59368.0,59367.0,0.009086]
[1723744243170,2.45960823,59368.0,59367.0,0.00466694]
[1723744243347,2.54930823,59368.0,59367.0,0.00466694]
[1723744243698,2.54930823,59368.0,59367.0,1e-08]
[1723744243906,2.59820823,59368.0,59367.0,1e-08]
[1723744244319,2.48547544,59368.0,59367.0,1e-08]
[1723744244533,2.36495369,59368.0,59367.0,1e-08]
[1723744244946,2.29081869,59368.0,59367.0,1e-08]
[1723744245572,1.95393769,59368.0,59367.0,1e-08]
[1723744245781,1.93637811,59368.0,59367.0,1e-08]
[1723744246200,1.59949711,59368.0,59367.0,0.08060001]
[1723744246405,1.47373698,59368.0,59367.0,0.08060001]
[1723744246612,1.79661798,59368.0,59367.0,0.08060001]
[1723744246820,1.81061798,59368.0,59367.0,0.08060001]
[1723744247027,1.47373698,59368.0,59367.0,0.08060001]
[1723744247201,1.45973698,59368.0,59367.0,0.08060001]
[1723744247431,1.80861798,59368.0,59367.0,1e-08]
[1723744247636,1.82261798,59368.0,59367.0,1e-08]
[1723744247839,1.92261798,59368.0,59367.0,1e-08]
[1723744248043,2.08017252,59368.0,59367.0,1e-08]
[1723744248494,2.13901363,59368.0,59367.0,1e-08]
[1723744249726,1.64257809,59368.0,59367.0,1e-08]
[1723744249928,1.58373698,59368.0,59367.0,0.08010001]
[1723744250132,1.92061798,59368.0,59367.0,0.14570001]
[1723744250309,1.97945909,59368.0,59367.0,0.14570001]
[1723744250540,2.15101363,59368.0,59367.0,0.14570001]
[1723744251135,1.64257809,59368.0,59367.0,0.14570001]
[1723744251342,1.64257809,59368.0,59367.0,0.08010001]
[1723744251549,1.97945909,59368.0,59367.0,0.08010001]
[1723744251750,1.64257809,59368.0,59367.0,0.08010001]
[1723744252394,1.97945909,59368.0,59367.0,0.08010001]
[1723744252597,2.22952655,59368.0,59367.0,0.08010001]
[1723744252801,2.17069152,59368.0,59367.0,0.08010001]
[1723744253388,2.17151852,59368.0,59367.0,0.08010001]
[1723744253762,2.155532,59368.0,59367.0,0.08010001]
[1723744254515,2.17151741,59368.0,59367.0,0.08010001]
[1723744255652,2.155532,59368.0,59367.0,0.08010001]
[1723744256014,1.98397746,59368.0,59367.0,0.08010001]
[1723744256174,1.99995867,59368.0,59367.0,0.08010001]
[1723744256531,1.98397746,59368.0,59367.0,0.08010001]
[1723744257262,2.50073705,59368.0,59367.0,1e-08]
[1723744257470,1.179223,59361.0,59360.0,0.009097]
[1723744257672,1.54526905,59361.0,59360.0,0.009097]
[1723744257875,1.54526905,59361.0,59360.0,0.088897]
[1723744258970,1.55557565,59361.0,59360.0,0.088897]
[1723744259178,1.55557565,59361.0,59360.0,0.153797]
[1723744259179,0.79291615,59361.0,59360.0,0.153797]
[1723744259384,0.35101454,59361.0,59360.0,0.153797]
[1723744259588,0.70391712,59361.0,59360.0,0.153797]
[1723744259781,0.70391712,59361.0,59360.0,0.16943428]
[1723744259985,0.71491712,59361.0,59360.0,0.16943428]
[1723744260135,0.70391712,59361.0,59360.0,0.16943428]
[1723744260343,0.02698158,59361.0,59360.0,0.16943428]
[1723744260540,0.18444158,59361.0,59360.0,0.16943428]
[1723744260728,0.52136258,59361.0,59360.0,0.16943428]
[1723744261326,0.52136258,59361.0,59360.0,0.153797]
[1723744261527,0.52636258,59361.0,59360.0,0.153797]
[1723744261722,0.52136258,59361.0,59360.0,0.16943428]
[1723744261977,0.52636258,59361.0,59360.0,0.16943428]
[1723744262313,0.53036258,59361.0,59360.0,0.16943428]
[1723744262757,0.52536258,59361.0,59360.0,0.16943428]
[1723744262866,0.86628358,59361.0,59360.0,0.16943428]
[1723744263072,1.46138748,59361.0,59360.0,0.16943428]
[1723744263274,1.81138748,59361.0,59360.0,0.02473428]
[1723744263517,1.91138748,59361.0,59360.0,0.009097]
[1723744263789,1.56138748,59361.0,59360.0,0.009097]
[1723744264792,1.99138748,59361.0,59360.0,0.009097]
[1723744265053,2.32830848,59361.0,59360.0,0.009097]
[1723744265275,1.89830848,59361.0,59360.0,0.009097]
[1723744265658,1.89830845,59361.0,59360.0,0.009097]
[1723744266032,2.0356591,59361.0,59360.0,0.009097]
[1723744266245,1.27518874,59361.0,59360.0,0.088697]
[1723744266405,1.13783809,59361.0,59360.0,0.152097]
[1723744267133,1.13783809,59361.0,59360.0,0.088697]
[1723744267336,2.11465128,59361.0,59360.0,0.009097]
[1723744267544,2.19316262,59361.0,59360.0,0.009097]
[1723744267744,1.179283,59358.0,59357.0,0.0117651]
[1723744267947,2.73737381,59358.0,59357.0,0.0117651]
[1723744268161,1.179402,59352.0,59351.0,0.009297]
[1723744268389,2.5517987,59352.0,59351.0,0.009297]
[1723744268542,2.62508023,59352.0,59351.0,0.009297]
[1723744268744,2.96205223,59352.0,59351.0,0.009297]
[1723744268960,2.82176682,59352.0,59351.0,0.009297]
[1723744269205,2.77362899,59352.0,59351.0,0.009297]
[1723744269406,2.82176687,59352.0,59351.0,0.009297]
[1723744269609,2.74635324,59352.0,59351.0,0.009297]
[1723744269834,2.79264711,59352.0,59351.0,0.009297]
[1723744270052,2.40077488,59352.0,59351.0,0.009297]
[1723744270288,2.39731056,59352.0,59351.0,0.009297]
[1723744270545,2.43358598,59352.0,59351.0,0.009297]
[1723744270833,1.40860092,59352.0,59351.0,0.088097]
[1723744271052,0.70698598,59352.0,59351.0,0.088097]
[1723744271521,1.04395798,59352.0,59351.0,0.148397]
[1723744271791,1.09773174,59352.0,59351.0,0.148397]
[1723744271987,1.59690374,59352.0,59351.0,0.009297]
[1723744272174,1.96290374,59352.0,59351.0,0.009297]
[1723744272379,1.35993174,59352.0,59351.0,0.009297]
[1723744272790,2.09020374,59352.0,59351.0,0.009297]
[1723744273003,1.94170763,59352.0,59351.0,0.009297]
[1723744273208,1.76620374,59352.0,59351.0,0.009297]
[1723744273412,1.49492998,59352.0,59351.0,0.009297]
[1723744273614,1.57344967,59352.0,59351.0,0.009297]
[1723744273839,1.55944967,59352.0,59351.0,0.009297]
[1723744274679,1.48092998,59352.0,59351.0,0.009297]
[1723744274889,2.21352998,59352.0,59351.0,0.009297]
[1723744275108,2.46359744,59352.0,59351.0,0.009297]
[1723744275311,2.85156944,59352.0,59351.0,0.009297]
[1723744275511,2.50059744,59352.0,59351.0,0.009297]
[1723744275715,2.82356944,59352.0,59351.0,0.009297]
[1723744275917,2.50059744,59352.0,59351.0,0.009297]
[1723744276340,2.83756944,59352.0,59351.0,0.009297]
[1723744276550,2.85156944,59352.0,59351.0,0.009297]
[1723744278317,2.91038054,59352.0,59351.0,0.009297]
[1723744279551,3.24735254,59352.0,59351.0,0.009297]
[1723744280186,3.18854144,59352.0,59351.0,0.009297]
[1723744280376,3.24735254,59352.0,59351.0,0.009297]
[1723744280980,2.91038054,59352.0,59351.0,0.009297]
[1723744281405,2.83467711,59352.0,59351.0,0.009297]
[1723744281936,2.83468532,59352.0,59351.0,0.009297]
[1723744282658,2.91438532,59352.0,59351.0,0.009297]
[1723744283067,2.77586668,59352.0,59351.0,0.009297]
[1723744283470,2.8346708,59352.0,59351.0,0.009297]